fUSD/lending_fUSD_20240407
["ID","MTS","AMOUNT","RATE_DAILY","PERIOD"]
[321762377,1712505042053,-162.11590932,0.000219,2]
[321762378,1712505042063,-162.11590932,0.000219,2]
[321762379,1712505042072,-162.11590932,0.000219,2]
[321762380,1712505042081,-162.11590932,0.000219,2]
[321762381,1712505042091,-162.11590932,0.000219,2]
[321762382,1712505042100,-162.11590932,0.000219,2]
[321762383,1712505042112,-162.11590932,0.000219,2]
[321762384,1712505042122,-162.11590932,0.000219,2]
[321762385,1712505042131,-162.11590932,0.000219,2]
[321762386,1712505042140,-162.11590932,0.000219,2]
[321762387,1712505042149,-162.11590932,0.000219,2]
[321762388,1712505042159,-162.11590932,0.000219,2]
[321762389,1712505042167,-162.11590932,0.000219,2]
[321762390,1712505042177,-162.11590932,0.000219,2]
[321762391,1712505042186,-162.11590932,0.000219,2]
[321762392,1712505042197,-162.11590932,0.000219,2]
[321762393,1712505042206,-162.11590932,0.000219,2]
[321762394,1712505042215,-162.11590932,0.000219,2]
[321762395,1712505042224,-162.11590932,0.000219,2]
[321762396,1712505042233,-162.11590932,0.000219,2]
[321762397,1712505042242,-162.11590932,0.000219,2]
[321762398,1712505042251,-162.11590932,0.000219,2]
[321762399,1712505042261,-162.11590932,0.000219,2]
[321762400,1712505042270,-162.11590932,0.000219,2]
[321762401,1712505042279,-162.11590932,0.000219,2]
[321762402,1712505042288,-162.11590932,0.000219,2]
[321762403,1712505042297,-162.11590932,0.000219,2]
[321762404,1712505042306,-162.11590932,0.000219,2]
[321762405,1712505042315,-162.11590932,0.000219,2]
[321762406,1712505042324,-162.11590932,0.000219,2]
[321762407,1712505042334,-162.11590932,0.000219,2]
[321762408,1712505042343,-162.11590932,0.000219,2]
[321762409,1712505042352,-162.11590932,0.000219,2]
[321762410,1712505042361,-162.11590932,0.000219,2]
[321762411,1712505042370,-162.11590932,0.000219,2]
[321762412,1712505042379,-162.11590932,0.000219,2]
[321762413,1712505042388,-162.11590932,0.000219,2]
[321762414,1712505042397,-162.11590932,0.000219,2]
[321762415,1712505042406,-162.11590932,0.000219,2]
[321762416,1712505042415,-162.11590932,0.000219,2]
[321762417,1712505042424,-162.11590932,0.000219,2]
[321762418,1712505042433,-162.11590932,0.000219,2]
[321762419,1712505042443,-162.11590932,0.000219,2]
[321762420,1712505042452,-162.11590932,0.000219,2]
[321762421,1712505042461,-162.11590932,0.000219,2]
[321762422,1712505042470,-162.11590932,0.000219,2]
[321762423,1712505042480,-162.11590932,0.000219,2]
[321762424,1712505042489,-162.11590932,0.000219,2]
[321762425,1712505042500,-162.11590932,0.000219,2]
[321762426,1712505042509,-162.11590932,0.000219,2]
[321762427,1712505042518,-162.11590932,0.000219,2]
[321762428,1712505042527,-162.11590932,0.000219,2]
[321762429,1712505042536,-500.0,0.00021904,2]
[321762430,1712505042546,-151.0,0.00021918,2]
[321762431,1712505042556,-151.0,0.00021918,2]
[321762432,1712505042567,-174.548123,0.00021918,2]
[321762433,1712505042578,-151.0,0.00021918,2]
[321762434,1712505042589,-151.0,0.00021918,2]
[321762435,1712505042599,-151.0,0.00021918,2]
[321762436,1712505042610,-151.0,0.00021918,2]
[321762437,1712505042621,-151.0,0.00021918,2]
[321762438,1712505042631,-151.0,0.00021918,2]
[321762439,1712505042642,-151.0,0.00021918,2]
[321762440,1712505042652,-155.139458,0.00021918,2]
[321762441,1712505042662,-151.0,0.00021918,2]
[321762442,1712505042672,-151.764311,0.00021918,2]
[321762444,1712505042681,-151.0,0.00021918,2]
[321762446,1712505042691,-151.0,0.00021918,2]
[321762448,1712505042701,-151.0,0.00021918,2]
[321762449,1712505042711,-151.0,0.00021918,2]
[321762451,1712505042721,-151.0,0.00021918,2]
[321762454,1712505042731,-152.249363,0.00021918,2]
[321762457,1712505042741,-151.0,0.00021918,2]
[321762458,1712505042750,-151.0,0.00021918,2]
[321762460,1712505042759,-151.0,0.00021918,2]
[321762462,1712505042772,-151.0,0.00021918,2]
[321762465,1712505042782,-151.0,0.00021918,2]
[321762467,1712505042791,-151.0,0.00021918,2]
[321762469,1712505042801,-151.0,0.00021918,2]
[321762471,1712505042810,-152.020017,0.00021918,2]
[321762473,1712505042819,-151.0,0.00021918,2]
[321762475,1712505042828,-151.0,0.00021918,2]
[321762477,1712505042838,-151.0,0.00021918,2]
[321762494,1712505042847,-153.266714,0.00021918,2]
[321762495,1712505043000,-154.713155,0.00021918,2]
[321762496,1712505043009,-151.0,0.00021918,2]
[321762497,1712505043019,-154.29269,0.00021918,2]
[321762498,1712505043028,-151.0,0.00021918,2]
[321762499,1712505043038,-294.910045,0.00021918,2]
[321762500,1712505043047,-151.0,0.00021918,2]
[321762501,1712505043056,-151.0,0.00021918,2]
[321762502,1712505043065,-197.0,0.00021918,2]
[321762503,1712505043074,-151.0,0.00021918,2]
[321762504,1712505043083,-151.0,0.00021918,2]
[321762505,1712505043093,-151.0,0.00021918,2]
[321762506,1712505043102,-151.0,0.00021918,2]
[321762507,1712505043112,-151.0,0.00021918,2]
[321762508,1712505043123,-151.0,0.00021918,2]
[321762509,1712505043132,-151.90172,0.00021918,2]
[321762510,1712505043141,-152.113729,0.00021918,2]
[321762511,1712505043150,-151.0,0.00021918,2]
[321762512,1712505043159,-152.633437,0.00021918,2]
[321762513,1712505043169,-163.785076,0.00021918,2]
[321762514,1712505043178,-163.785076,0.00021918,2]
[321762515,1712505043187,-163.785076,0.00021918,2]
[321762516,1712505043197,-163.785076,0.00021918,2]
[321762517,1712505043207,-163.785076,0.00021918,2]
[321762518,1712505043216,-151.0,0.00021918,2]
[321762519,1712505043225,-151.0,0.00021918,2]
[321762520,1712505043234,-151.0,0.00021918,2]
[321762521,1712505043244,-151.0,0.00021918,2]
[321762522,1712505043253,-151.0,0.00021918,2]
[321762523,1712505043263,-163.785076,0.00021918,2]
[321762524,1712505043272,-163.785076,0.00021918,2]
[321762525,1712505043283,-163.785076,0.00021918,2]
[321762526,1712505043293,-163.785076,0.00021918,2]
[321762527,1712505043303,-163.785076,0.00021918,2]
[321762528,1712505043312,-151.70532,0.00021918,2]
[321762529,1712505043322,-1500.0,0.00021918,2]
[321762530,1712505043331,-151.0,0.00021918,2]
[321762531,1712505043341,-151.0,0.00021918,2]
[321762532,1712505043351,-151.0,0.00021918,2]
[321762533,1712505043361,-151.0,0.00021918,2]
[321762534,1712505043370,-151.0,0.00021918,2]
[321762536,1712505043380,-151.0,0.00021918,2]
[321762538,1712505043389,-151.0,0.00021918,2]
[321762539,1712505043398,-151.0,0.00021918,2]
[321762540,1712505043407,-151.0,0.00021918,2]
[321762541,1712505043418,-153.823976,0.00021918,2]
[321762542,1712505043427,-151.0,0.00021918,2]
[321762543,1712505043436,-151.0,0.00021918,2]
[321762545,1712505043446,-151.0,0.00021918,2]
[321762547,1712505043455,-221.54389,0.00021918,2]
[321762549,1712505043465,-151.0,0.00021918,2]
[321762551,1712505043474,-151.986652,0.00021918,2]
[321762553,1712505043483,-151.189182,0.00021918,2]
[321762555,1712505043492,-176.979522,0.00021918,2]
[321762557,1712505043501,-151.0,0.00021918,2]
[321762559,1712505043512,-151.0,0.00021918,2]
[321762562,1712505043521,-151.0,0.00021918,2]
[321762564,1712505043531,-244.533942,0.00021918,2]
[321762566,1712505043541,-151.0,0.00021918,2]
[321762567,1712505043550,-170.529147,0.00021918,2]
[321762569,1712505043560,-151.0,0.00021918,2]
[321762572,1712505043569,-152.100848,0.00021918,2]
[321762573,1712505043578,-282.283811,0.00021918,2]
[321762577,1712505043588,-151.0,0.00021918,2]
[321762580,1712505043597,-151.0,0.00021918,2]
[321762581,1712505043606,-151.0,0.00021918,2]
[321762583,1712505043616,-151.0,0.00021918,2]
[321762585,1712505043625,-151.0,0.00021918,2]
[321762587,1712505043634,-151.0,0.00021918,2]
[321762589,1712505043643,-151.0,0.00021918,2]
[321762591,1712505043652,-151.0,0.00021918,2]
[321762593,1712505043661,-151.0,0.00021918,2]
[321762595,1712505043671,-151.0,0.00021918,2]
[321762597,1712505043681,-151.206899,0.00021918,2]
[321762599,1712505043690,-151.0,0.00021918,2]
[321762601,1712505043699,-151.0,0.00021918,2]
[321762603,1712505043709,-151.0,0.00021918,2]
[321762605,1712505043718,-151.0,0.00021918,2]
[321762607,1712505043727,-164.660401,0.00021918,2]
[321762609,1712505043736,-151.0,0.00021918,2]
[321762610,1712505043746,-288.490376,0.00021918,2]
[321762611,1712505043755,-151.0,0.00021918,2]
[321762612,1712505043767,-151.0,0.00021918,2]
[321762613,1712505043776,-151.0,0.00021918,2]
[321762614,1712505043785,-151.0,0.00021918,2]
[321762615,1712505043794,-151.0,0.00021918,2]
[321762616,1712505043803,-151.0,0.00021918,2]
[321762617,1712505043812,-151.0,0.00021918,2]
[321762618,1712505043822,-151.0,0.00021918,2]
[321762619,1712505043831,-151.0,0.00021918,2]
[321762620,1712505043841,-155.301914,0.00021918,2]
[321762621,1712505043853,-151.0,0.00021918,2]
[321762622,1712505043862,-151.0,0.00021918,2]
[321762623,1712505043871,-151.828383,0.00021918,2]
[321762624,1712505043880,-151.0,0.00021918,2]
[321762625,1712505043890,-151.0,0.00021918,2]
[321762626,1712505043899,-151.0,0.00021918,2]
[321762627,1712505043909,-151.0,0.00021918,2]
[321762628,1712505043918,-151.0,0.00021918,2]
[321762629,1712505043927,-151.0,0.00021918,2]
[321762630,1712505043936,-151.0,0.00021918,2]
[321762631,1712505043946,-151.0,0.00021918,2]
[321762632,1712505043955,-151.0,0.00021918,2]
[321762633,1712505043965,-151.0,0.00021918,2]
[321762634,1712505043974,-151.0,0.00021918,2]
[321762635,1712505043983,-151.0,0.00021918,2]
[321762636,1712505043993,-151.0,0.00021918,2]
[321762637,1712505044002,-241.817135,0.00021918,2]
[321762638,1712505044012,-151.0,0.00021918,2]
[321762639,1712505044021,-151.0,0.00021918,2]
[321762640,1712505044030,-260.479068,0.00021918,2]
[321762641,1712505044040,-151.0,0.00021918,2]
[321762642,1712505044049,-151.0,0.00021918,2]
[321762643,1712505044058,-151.0,0.00021918,2]
[321762644,1712505044068,-154.585444,0.00021918,2]
[321762645,1712505044077,-154.585444,0.00021918,2]
[321762646,1712505044087,-154.585444,0.00021918,2]
[321762647,1712505044097,-154.585444,0.00021918,2]
[321762648,1712505044106,-154.585444,0.00021918,2]
[321762649,1712505044116,-154.585444,0.00021918,2]
[321762650,1712505044131,-154.585444,0.00021918,2]
[321762651,1712505044142,-154.585444,0.00021918,2]
[321762652,1712505044154,-154.585444,0.00021918,2]
[321762653,1712505044165,-154.585444,0.00021918,2]
[321762654,1712505044174,-154.585444,0.00021918,2]
[321762655,1712505044183,-154.585444,0.00021918,2]
[321762656,1712505044193,-151.0,0.00021918,2]
[321762657,1712505044203,-151.0,0.00021918,2]
[321762658,1712505044212,-151.0,0.00021918,2]
[321762659,1712505044221,-151.0,0.00021918,2]
[321762660,1712505044230,-151.0,0.00021918,2]
[321762661,1712505044239,-151.0,0.00021918,2]
[321762662,1712505044249,-151.0,0.00021918,2]
[321762663,1712505044258,-151.0,0.00021918,2]
[321762664,1712505044270,-151.0,0.00021918,2]
[321762665,1712505044279,-151.0,0.00021918,2]
[321762666,1712505044288,-151.0,0.00021918,2]
[321762667,1712505044298,-151.0,0.00021918,2]
[321762668,1712505044307,-151.0,0.00021918,2]
[321762669,1712505044316,-151.0,0.00021918,2]
[321762670,1712505044326,-151.0,0.00021918,2]
[321762671,1712505044335,-151.0,0.00021918,2]
[321762672,1712505044345,-151.0,0.00021918,2]
[321762673,1712505044354,-151.0,0.00021918,2]
[321762674,1712505044363,-151.0,0.00021918,2]
[321762675,1712505044373,-151.0,0.00021918,2]
[321762676,1712505044382,-151.0,0.00021918,2]
[321762677,1712505044391,-151.0,0.00021918,2]
[321762678,1712505044400,-151.0,0.00021918,2]
[321762679,1712505044410,-151.0,0.00021918,2]
[321762680,1712505044420,-151.0,0.00021918,2]
[321762681,1712505044430,-151.899713,0.00021918,2]
[321762682,1712505044439,-284.203098,0.00021918,2]
[321762683,1712505044448,-284.203098,0.00021918,2]
[321762684,1712505044458,-284.203098,0.00021918,2]
[321762685,1712505044468,-284.203098,0.00021918,2]
[321762686,1712505044477,-284.203098,0.00021918,2]
[321762687,1712505044487,-284.203098,0.00021918,2]
[321762688,1712505044496,-284.203098,0.00021918,2]
[321762689,1712505044506,-151.0,0.00021918,2]
[321762690,1712505044517,-284.203098,0.00021918,2]
[321762691,1712505044527,-151.0,0.00021918,2]
[321762692,1712505044536,-284.203098,0.00021918,2]
[321762693,1712505044545,-284.203098,0.00021918,2]
[321762694,1712505044554,-153.009124,0.00021918,2]
[321762695,1712505044563,-284.203098,0.00021918,2]
[321762696,1712505044573,-284.203098,0.00021918,2]
[321762697,1712505044582,-151.0,0.00021918,2]
[321762698,1712505044591,-151.0,0.00021918,2]
[321762699,1712505044600,-151.0,0.00021918,2]
[321762700,1712505044610,-151.408158,0.00021918,2]
[321762701,1712505044619,-155.163912,0.00021918,2]
[321762702,1712505044629,-151.0,0.00021918,2]
[321762703,1712505044639,-151.0,0.00021918,2]
[321762704,1712505044651,-151.0,0.00021918,2]
[321762705,1712505044662,-151.0,0.00021918,2]
[321762706,1712505044671,-151.0,0.00021918,2]
[321762707,1712505044681,-203.265617,0.00021918,2]
[321762708,1712505044691,-151.0,0.00021918,2]
[321762709,1712505044701,-151.0,0.00021918,2]
[321762710,1712505044711,-151.0,0.00021918,2]
[321762711,1712505044721,-151.0,0.00021918,2]
[321762712,1712505044730,-151.0,0.00021918,2]
[321762713,1712505044740,-151.0,0.00021918,2]
[321762714,1712505044751,-151.0,0.00021918,2]
[321762715,1712505044763,-151.0,0.00021918,2]
[321762716,1712505044773,-151.0,0.00021918,2]
[321762717,1712505044784,-151.0,0.00021918,2]
[321762718,1712505044793,-151.0,0.00021918,2]
[321762719,1712505044802,-152.029643,0.00021918,2]
[321762720,1712505044813,-151.0,0.00021918,2]
[321762721,1712505044822,-151.0,0.00021918,2]
[321762722,1712505044832,-266.013267,0.00021918,2]
[321762723,1712505044972,-151.0,0.00021918,2]
[321762724,1712505044981,-151.0,0.00021918,2]
[321762725,1712505044991,-151.0,0.00021918,2]
[321762726,1712505045001,-151.0,0.00021918,2]
[321762727,1712505045012,-151.0,0.00021918,2]
[321762728,1712505045023,-151.0,0.00021918,2]
[321762729,1712505045034,-151.0,0.00021918,2]
[321762730,1712505045043,-243.608969,0.00021918,2]
[321762731,1712505045053,-250.0,0.00021918,2]
[321762732,1712505045063,-151.0,0.00021918,2]
[321762733,1712505045072,-250.460351,0.00021918,2]
[321762734,1712505045081,-151.0,0.00021918,2]
[321762735,1712505045092,-151.0,0.00021918,2]
[321762736,1712505045102,-151.0,0.00021918,2]
[321762737,1712505045117,-151.0,0.00021918,2]
[321762738,1712505045126,-151.0,0.00021918,2]
[321762739,1712505045137,-151.0,0.00021918,2]
[321762740,1712505045148,-151.0,0.00021918,2]
[321762741,1712505045159,-151.0,0.00021918,2]
[321762742,1712505045172,-152.248635,0.00021918,2]
[321762743,1712505045181,-151.0,0.00021918,2]
[321762744,1712505045194,-151.633661,0.00021918,2]
[321762745,1712505045205,-151.0,0.00021918,2]
[321762746,1712505045214,-151.0,0.00021918,2]
[321762747,1712505045223,-151.0,0.00021918,2]
[321762748,1712505045232,-151.0,0.00021918,2]
[321762749,1712505045241,-151.0,0.00021918,2]
[321762750,1712505045251,-151.0,0.00021918,2]
[321762751,1712505045262,-151.0,0.00021918,2]
[321762752,1712505045271,-151.0,0.00021918,2]
[321762753,1712505045281,-151.0,0.00021918,2]
[321762754,1712505045290,-151.0,0.00021918,2]
[321762755,1712505045299,-151.0,0.00021918,2]
[321762756,1712505045308,-151.0,0.00021918,2]
[321762757,1712505045318,-151.0,0.00021918,2]
[321762758,1712505045327,-151.0,0.00021918,2]
[321762759,1712505045336,-151.0,0.00021918,2]
[321762760,1712505045345,-150.0,0.00021918,2]
[321762761,1712505045355,-151.0,0.00021918,7]
[321762762,1712505045365,-284.203098,0.00021918,7]
[321762763,1712505045374,-284.203098,0.00021918,7]
[321762764,1712505045383,-265.405119,0.00021918,7]
[321762765,1712505045393,-151.0,0.00021918,7]
[321762766,1712505045402,-228.04472199,0.0002195,2]
[321762767,1712505045411,-221228.58719089,0.0002198,2]
[321762768,1712505045420,-951.85392236,0.00022,2]
[321762769,1712505045430,-640.50173907,0.00022,2]
[321762770,1712505045439,-1672645.88138713,0.00022,2]
[321762771,1712505045448,-7716.7803221,0.00022,2]
[321762772,1712505045457,-238.56205194,0.00022,2]
[321762773,1712505045467,-1053.7260208,0.00022,2]
[321762774,1712505045476,-188.30290634,0.00022,2]
[321762775,1712505045485,-783.28322174,0.00022,2]
[321762776,1712505045494,-206.42915876,0.00022,2]
[321762777,1712505045503,-272.97382694,0.00022,2]
[321762778,1712505045514,-205.277719,0.00022,7]
[321762779,1712505045524,-284.203098,0.00022,7]
[321762780,1712505045533,-174.0,0.00022,2]
[321762781,1712505045543,-284.203098,0.00022,7]
[321762782,1712505045552,-151.0,0.00022,7]
[321762783,1712505045561,-242.98,0.0002237,2]
[321762784,1712505045570,-200.0,0.00022387,2]
[321762785,1712505045580,-8196.64058422,0.000224,2]
[321762787,1712505045589,-293.0,0.00022435,2]
[321762789,1712505045599,-164.693537,0.00022466,2]
[321762791,1712505045610,-2089.2862652,0.00022491,2]
[321762793,1712505045619,-27058.6680995,0.00022491,2]
[321762795,1712505045628,-11065.9105226,0.00022491,2]
[321762797,1712505045637,-25667.9502715,0.000225,2]
[321762799,1712505045646,-24747.409651,0.000225,2]
[321762800,1712505045656,-24747.409651,0.000225,2]
[321762802,1712505045665,-24747.409651,0.000225,2]
[321762804,1712505045674,-24747.409651,0.000225,2]
[321762805,1712505045682,-24747.409651,0.000225,2]
[321762806,1712505045691,-24747.409651,0.000225,2]
[321762807,1712505045700,-24747.409651,0.000225,2]
[321762808,1712505045708,-24747.409651,0.000225,2]
[321762810,1712505045717,-24747.409651,0.000225,2]
[321762812,1712505045726,-24747.409651,0.000225,2]
[321762814,1712505045736,-79581.22591408,0.000225,2]
[321762816,1712505045745,-200.0,0.000225,2]
[321762818,1712505045754,-5000.0,0.000225,2]
[321762820,1712505045765,-155.0,0.000225,2]
[321762822,1712505045774,-200.0,0.000225,2]
[321762825,1712505045782,-150.0,0.000225,2]
[321762827,1712505045792,-394.0,0.000225,2]
[321762831,1712505045807,-150.0,0.000225,2]
[321762834,1712505045826,-530.83825632,0.000225,2]
[321762838,1712505045843,-189.14217404,0.000225,2]
[321762841,1712505045863,-2207.71309066,0.000225,2]
[321762843,1712505045881,-284.203098,0.000225,7]
[321762845,1712505045896,-284.203098,0.000225,7]
[321762847,1712505045913,-151.0,0.000225,7]
[321762850,1712505045930,-7510.495196,0.00022506,2]
[321762852,1712505045947,-127463.8839243,0.00022506,2]
[321762855,1712505045963,-284.203098,0.00022506,7]
[321762857,1712505045979,-284.203108,0.00022506,7]
[321762859,1712505045996,-151.0,0.00022506,7]
[321762862,1712505046016,-934.0,0.00022521,2]
[321762864,1712505046031,-545.0,0.00022521,2]
[321762866,1712505046044,-543.0,0.00022521,2]
[321762869,1712505046060,-337.0,0.000227,2]
[321762871,1712505046077,-2463.02,0.000227,2]
[321762873,1712505046091,-2469.0,0.000227,2]
[321762875,1712505046107,-200.0,0.00022725,2]
[321762877,1712505046122,-200.0,0.00022725,2]
[321762879,1712505046138,-167.0,0.00022749,2]
[321762881,1712505046153,-1859.18,0.000228,2]
[321762884,1712505046169,-155.0,0.0002284,2]
[321762886,1712505046188,-247823.40635672,0.000229,2]
[321762888,1712505046206,-163.785076,0.000229,7]
[321762891,1712505046220,-163.785068,0.000229,7]
[321762893,1712505046236,-240.144695,0.000229,7]
[321762895,1712505046250,-151.0,0.000229,7]
[321762897,1712505046264,-2451.262,0.0002292,2]
[321762899,1712505046278,-463.087,0.0002292,2]
[321762901,1712505046293,-1399.462,0.0002292,2]
[321762903,1712505046309,-973.992,0.0002292,2]
[321762905,1712505046323,-1269.054,0.0002292,2]
[321762908,1712505046338,-150.0,0.0002292,2]
[321762910,1712505046354,-1944.0,0.0002292,2]
[321762911,1712505046369,-281.556,0.0002292,2]
[321762912,1712505046384,-435.0,0.0002292,2]
[321762913,1712505046399,-805.0,0.0002292,2]
[321762914,1712505046413,-606.0,0.0002292,2]
[321762915,1712505046428,-1467.0,0.0002292,2]
[321762916,1712505046445,-397.0,0.0002292,2]
[321762917,1712505046461,-1140.0,0.0002292,2]
[321762918,1712505046477,-3033.0,0.0002292,2]
[321762919,1712505046492,-150.0,0.0002292,2]
[321762920,1712505046509,-1632.0,0.0002292,2]
[321762921,1712505046526,-2432.0,0.0002292,2]
[321762922,1712505046541,-217.424,0.0002292,2]
[321762923,1712505046555,-413.117,0.0002292,2]
[321762924,1712505046570,-37530.0,0.0002292,2]
[321762925,1712505046586,-4792.0,0.0002292,2]
[321762926,1712505046602,-5705.0,0.0002292,2]
[321762927,1712505046616,-1312.0,0.0002292,2]
[321762928,1712505046631,-2458.0,0.0002292,2]
[321762929,1712505046647,-150.0,0.0002292,2]
[321762930,1712505046662,-500.0,0.00022951,2]
[321762931,1712505046676,-500.0,0.00022951,2]
[321762932,1712505046692,-500.0,0.00022951,2]
[321762933,1712505046707,-500.0,0.00022951,2]
[321762934,1712505046722,-500.0,0.00022951,2]
[321762935,1712505046737,-500.0,0.00022951,2]
[321762936,1712505046751,-500.0,0.00022951,2]
[321762937,1712505046768,-500.0,0.00022951,2]
[321762938,1712505046782,-500.0,0.00022951,2]
[321762939,1712505046797,-500.0,0.00022951,2]
[321762940,1712505046812,-500.0,0.00022951,2]
[321762941,1712505046827,-500.0,0.00022951,2]
[321762942,1712505046841,-500.0,0.00022951,2]
[321762943,1712505046856,-500.0,0.00022951,2]
[321762944,1712505046871,-500.0,0.00022951,2]
[321762945,1712505046886,-500.0,0.00022951,2]
[321762946,1712505046900,-762.0,0.00022951,2]
[321762947,1712505046915,-500.0,0.00022951,2]
[321762948,1712505046934,-500.0,0.00022951,2]
[321762949,1712505046950,-500.0,0.00022951,2]
[321762950,1712505046964,-500.0,0.00022951,2]
[321762951,1712505046979,-500.0,0.00022951,2]
[321762952,1712505046993,-500.0,0.00022951,2]
[321762953,1712505047007,-500.0,0.00022951,2]
[321762954,1712505047023,-500.0,0.00022951,2]
[321762955,1712505047038,-500.0,0.00022951,2]
[321762956,1712505047053,-500.0,0.00022951,2]
[321762957,1712505047070,-500.0,0.00022951,2]
[321762958,1712505047085,-500.0,0.00022951,2]
[321762959,1712505047096,-753.0,0.00022951,2]
[321762960,1712505047106,-200.0,0.00022952,2]
[321762961,1712505047117,-303503.64292633,0.0002299,3]
[321762962,1712505047130,-306.94010752,0.00023,2]
[321762963,1712505047139,-17351.20482302,0.00023,3]
[321762964,1712505047149,-1171.87997048,0.00023,2]
[321762965,1712505047158,-155.0,0.00023,2]
[321762966,1712505047411,-238.84928929,0.00023,2]
[321762967,1712505047432,-1850.0,0.00023,3]
[321762968,1712505047454,-150.0,0.00023,2]
[321762969,1712505047464,-6535.76243453,0.0002301,2]
[321762970,1712505047473,-174.0,0.00023014,2]
[321762971,1712505047482,-153.40889554,0.0002308,2]
[321762972,1712505047491,-242.98,0.00023085,2]
[321762973,1712505047501,-100000.0,0.00023119,2]
[321762974,1712505047510,-200.0,0.00023182,2]
[321762975,1712505047521,-500.0,0.00023192,2]
[321762976,1712505047530,-200.0,0.00023192,2]
[321762977,1712505047538,-500.0,0.00023192,2]
[321762978,1712505047547,-792.0,0.00023192,2]
[321762979,1712505047557,-500.0,0.00023192,2]
[321762980,1712505047566,-200.0,0.00023192,2]
[321762981,1712505047575,-770.0,0.00023192,2]
[321762982,1712505047585,-200.0,0.00023192,2]
[321762983,1712505047594,-200.0,0.00023192,2]
[321762984,1712505047603,-200.0,0.00023192,2]
[321762985,1712505047613,-200.0,0.00023192,2]
[321762986,1712505047623,-200.0,0.00023192,2]
[321762987,1712505047632,-200.0,0.00023192,2]
[321762988,1712505047642,-200.0,0.00023192,2]
[321762989,1712505047652,-200.0,0.00023192,2]
[321762990,1712505047661,-200.0,0.00023192,2]
[321762991,1712505047671,-200.0,0.00023192,2]
[321762992,1712505047681,-200.0,0.00023192,2]
[321762993,1712505047690,-369.0,0.00023192,2]
[321762994,1712505047699,-385.9003421,0.00023193,2]
[321762995,1712505047709,-328.83552218,0.00023224,2]
[321762996,1712505047718,-328.83552218,0.00023231,2]
[321762997,1712505047727,-163.72081666,0.00023255,2]
[321762998,1712505047736,-350.68,0.00023288,2]
[321762999,1712505047746,-264.76980586,0.00023382,2]
[321763000,1712505047755,-1000.0,0.00023382,2]
[321763001,1712505047767,-174.21755861,0.00023387,2]
[321763002,1712505047776,-385.9003421,0.00023399,2]
[321763003,1712505047785,-200.0,0.00023414,2]
[321763004,1712505047795,-157.24945075,0.00023423,2]
[321763005,1712505047804,-328.83552218,0.00023484,2]
[321763006,1712505047814,-5000.0,0.000235,2]
[321763007,1712505047823,-150.0,0.000235,2]
[321763008,1712505047833,-4370.66,0.00023505,2]
[321763009,1712505047842,-934.0,0.00023548,2]
[321763010,1712505047851,-545.0,0.00023548,2]
[321763011,1712505047861,-543.0,0.00023548,2]
[321763012,1712505047870,-168.82531247,0.0002355,2]
[321763013,1712505047879,-299.07,0.00023603,2]